bitfinex/quotes_BTCUSD_20260215
["timestamp","ask_amount","ask_price","bid_price","bid_amount"]
[1771180668207,0.16515932,68538.0,68516.0,0.15642389]
[1771180668418,0.0389286,68536.0,68516.0,0.15642389]
[1771180668628,0.26965554,68558.0,68526.0,0.86697746]
[1771180668831,0.36062446,68580.0,68536.0,0.15622389]
[1771180668832,0.27216,68551.0,68536.0,0.15622389]
[1771180669033,0.27216,68551.0,68538.0,0.15622389]
[1771180670043,0.27216,68551.0,68539.0,0.03129106]
[1771180670282,0.27216,68551.0,68542.0,0.15622389]
[1771180670454,0.27216,68551.0,68526.0,0.86697746]
[1771180670455,0.27216,68566.0,68547.0,0.15622389]
[1771180670673,0.00025156,68559.0,68547.0,0.15622389]
[1771180670878,0.00025156,68559.0,68542.0,0.15622389]
[1771180672473,0.00025156,68559.0,68544.0,0.15622389]
[1771180672856,0.00025156,68559.0,68544.0,0.18751495]
[1771180673237,0.00025156,68559.0,68545.0,0.03129106]
[1771180673580,0.00025156,68559.0,68546.0,0.18751495]
[1771180674355,0.00025156,68559.0,68540.0,0.5751217]
[1771180674575,0.00025156,68559.0,68545.0,0.07294389]
[1771180674811,0.00025156,68559.0,68546.0,0.15622389]
[1771180675199,0.00025156,68559.0,68541.0,0.29179372]
[1771180675200,0.03925161,68572.0,68541.0,0.15622389]
[1771180675375,0.03925161,68572.0,68542.0,0.07294797]
[1771180675577,0.03925161,68572.0,68552.0,0.15622389]
[1771180675822,0.03925161,68572.0,68553.0,0.07293531]
[1771180676155,0.03925161,68572.0,68554.0,0.15622389]
[1771180676732,0.27192,68573.0,68555.0,0.15622389]
[1771180678689,0.03925161,68572.0,68555.0,0.15622389]
[1771180678954,0.03925161,68572.0,68554.0,0.07293423]
[1771180679153,0.03925161,68572.0,68555.0,0.15622389]
[1771180679372,0.03925161,68572.0,68556.0,0.15622389]
[1771180679577,0.03925161,68572.0,68551.0,0.07293633]
[1771180679578,0.0004,68573.0,68560.0,0.5751217]
[1771180679737,0.0004,68573.0,68561.0,0.15622389]
[1771180680532,0.03925161,68572.0,68543.0,0.27772]
[1771180680732,0.0004,68573.0,68543.0,0.27772]
[1771180680733,0.0004,68573.0,68565.0,0.15622389]
[1771180680985,0.09344,68577.0,68568.0,0.18751495]
[1771180681980,0.09344,68577.0,68554.0,0.27784]
[1771180681981,0.0004,68603.0,68567.0,0.5751217]
[1771180682188,0.0004,68603.0,68580.0,0.03129106]
[1771180682189,0.06988,68593.0,68580.0,0.03129106]
[1771180682383,0.06988,68593.0,68583.0,0.15622389]
[1771180682565,0.00012923,68587.0,68583.0,0.15622389]
[1771180683174,0.00012923,68587.0,68579.0,0.07290775]
[1771180683175,0.06988,68593.0,68581.0,0.15622389]
[1771180683837,0.03925161,68596.0,68581.0,0.07290641]
[1771180684055,0.03925161,68596.0,68581.0,0.15622389]
[1771180684700,0.03925161,68596.0,68579.0,0.07290775]
[1771180684701,0.09344,68597.0,67126.0,0.04072289]
[1771180684921,0.09387059,68597.0,68577.0,0.15622389]
[1771180685086,0.09387059,68597.0,68583.0,0.15622389]
[1771180685658,0.0004,68584.0,68583.0,0.15622389]
[1771180685864,0.0004,68591.0,68583.0,0.15622389]
[1771180686681,0.09387059,68597.0,68585.0,0.15622389]
[1771180687487,0.09387059,68597.0,68588.0,0.15622389]
[1771180687919,0.09387059,68597.0,68582.0,0.07290523]
[1771180688114,0.09387059,68597.0,68583.0,0.15622389]
[1771180688698,0.09387059,68597.0,68584.0,0.03129106]
[1771180689000,0.09387059,68597.0,68585.0,0.18751495]
[1771180690215,0.09387059,68597.0,68587.0,0.15622389]
[1771180691277,0.09387059,68597.0,68581.0,0.15622389]
[1771180691576,0.1331222,68597.0,68581.0,0.15622389]
[1771180691780,0.03925161,68596.0,68581.0,0.07290621]
[1771180691961,0.03925161,68596.0,68582.0,0.15622389]
[1771180692808,0.09427059,68597.0,68582.0,0.10419629]
[1771180692976,0.09427059,68597.0,68583.0,0.18751495]
[1771180693179,0.09427059,68597.0,68584.0,0.03129106]
[1771180693535,0.09427059,68597.0,68588.0,0.15210559]
[1771180693887,0.09427059,68597.0,68589.0,0.03129106]
[1771180694104,0.09427059,68597.0,68590.0,0.18339665]
[1771180694746,0.09427059,68597.0,68590.0,0.15210559]
[1771180696523,0.00083059,68597.0,68590.0,0.15210559]
[1771180699067,0.00083059,68597.0,68583.0,0.07290424]
[1771180699269,0.00083059,68597.0,68584.0,0.15210559]
[1771180700908,0.00083059,68597.0,68586.0,0.15210559]
[1771180701111,0.00083059,68597.0,68588.0,0.15210559]
[1771180701827,0.00083059,68597.0,68587.0,0.03129106]
[1771180702789,0.0400822,68597.0,68584.0,0.15210559]
[1771180703336,0.17611937,68603.0,68587.0,0.57455262]
[1771180703541,0.03888626,68607.0,68593.0,0.57455262]
[1771180703777,0.03888626,68607.0,68599.0,0.15210559]
[1771180703973,0.0004,68610.0,68598.0,0.07288751]
[1771180704178,0.0004,68610.0,68600.0,0.57455262]
[1771180704338,0.0004,68610.0,68601.0,0.15210559]
[1771180704736,0.26916,68617.0,68600.0,0.57455262]
[1771180704737,0.0004,68617.0,68609.0,0.03129106]
[1771180704983,0.0004,68617.0,68602.0,0.27972]
[1771180704984,0.0004,68617.0,68611.0,0.03129106]
[1771180705401,0.0004,68617.0,68602.0,0.35260328]
[1771180705402,0.0004,68617.0,68603.0,0.2798]
[1771180705608,0.0004,68617.0,68603.0,0.35268303]
[1771180705806,0.0004,68617.0,68605.0,0.10417128]
[1771180705948,0.00052912,68617.0,68605.0,0.18339665]
[1771180706354,0.00052912,68617.0,68608.0,0.15210559]
[1771180706549,0.00052912,68617.0,68609.0,0.18339665]
[1771180706777,0.00052912,68617.0,68609.0,0.15210559]
[1771180707104,0.0003,68614.0,68609.0,0.15210559]
[1771180707336,0.0003,68614.0,68604.0,0.15210559]
[1771180707534,0.0003,68614.0,68603.0,0.2798]
[1771180707723,0.0003,68614.0,68604.0,0.15210559]
[1771180708020,0.0003,68614.0,68605.0,0.07288018]
[1771180708222,0.0003,68614.0,68606.0,0.15210559]
[1771180708429,0.0003,68614.0,68607.0,0.22498415]
[1771180708780,0.0003,68614.0,68608.0,0.03129106]
[1771180709383,0.0003,68614.0,68608.0,0.18339665]
[1771180709990,0.07285052,68634.0,68603.0,0.2798]
[1771180709991,0.15367186,68643.0,68615.0,0.15210559]
[1771180710188,0.15367186,68638.0,68616.0,0.03129106]
[1771180710732,0.03925161,68637.0,68588.0,0.58319133]
[1771180710901,0.03925161,68637.0,68607.0,0.0728786]
[1771180710902,0.0728508,68634.0,68607.0,0.0728786]
[1771180711103,0.29139048,68637.0,68608.0,0.43278559]
[1771180711104,0.19292347,68632.0,68608.0,0.43278559]
[1771180711314,0.07285412,68631.0,68606.0,0.28064]
[1771180711525,0.07285308,68632.0,68606.0,0.28064]
[1771180711730,0.07285308,68632.0,68607.0,0.15210559]
[1771180712031,0.07284912,68635.0,68607.0,0.15210559]
[1771180712230,0.19292347,68630.0,68607.0,0.15210559]
[1771180712457,0.15367186,68629.0,68607.0,0.15210559]
[1771180712616,0.03925161,68628.0,68607.0,0.15210559]
[1771180712819,0.03925161,68628.0,68608.0,0.03129106]
[1771180713018,0.15367186,68638.0,68611.0,0.15210559]
[1771180713229,0.15367186,68638.0,68613.0,0.15210559]
[1771180713470,0.15367186,68638.0,68614.0,0.15210559]
[1771180713673,0.00061258,68639.0,68620.0,0.72665821]
[1771180713874,0.00061258,68639.0,68621.0,0.18339665]
[1771180714435,0.0004,68631.0,68621.0,0.18339665]
[1771180714828,0.03965161,68631.0,68621.0,0.15210559]
[1771180715457,0.0004,68631.0,68621.0,0.15210559]
[1771180716867,0.00144589,68630.0,68623.0,0.15210559]
[1771180717032,0.00144589,68630.0,68624.0,0.03129106]
[1771180717429,0.00144589,68630.0,68624.0,0.02129106]
[1771180717848,0.00144589,68630.0,68626.0,0.02629106]
[1771180718288,0.00144589,68630.0,68622.0,0.17839665]
[1771180718697,0.00144589,68630.0,68622.0,0.15210559]
[1771180718857,0.03925161,68629.0,68615.0,0.15210559]
[1771180719078,0.03925161,68629.0,68618.0,0.28092]
[1771180719274,0.03925161,68629.0,68619.0,0.15210559]
[1771180719492,0.00144589,68630.0,68620.0,0.07286299]
[1771180719688,0.00144589,68630.0,68621.0,0.15210559]
[1771180720675,0.0004,68631.0,68622.0,0.15210559]
[1771180720881,0.0004,68631.0,68623.0,0.02629106]
[1771180721097,0.09376,68645.0,68619.0,0.57455262]
[1771180721287,0.09336,68661.0,68648.0,0.02629106]
[1771180721493,0.09336,68661.0,68648.0,0.17789665]
[1771180721912,0.09336,68661.0,68649.0,0.02604106]
[1771180722114,0.09336,68661.0,68651.0,0.02604106]
[1771180722263,0.09336,68661.0,68652.0,0.15210559]
[1771180722471,0.09336,68661.0,68652.0,0.17814665]
[1771180722472,0.09348905,68661.0,68652.0,0.17814665]
[1771180722791,0.09348905,68661.0,68652.0,0.15210559]
[1771180723312,0.00012905,68661.0,68652.0,0.15210559]
[1771180723860,0.00012905,68661.0,68651.0,0.15442513]
[1771180724062,0.00012905,68661.0,68652.0,0.07283055]
[1771180724303,0.00012905,68661.0,68654.0,0.15968353]
[1771180724859,0.00012905,68661.0,68655.0,0.15968353]
[1771180725106,0.00012905,68661.0,68658.0,0.02604106]
[1771180725523,0.1091219,68667.0,68650.0,0.57455262]
[1771180725524,0.0005219,68667.0,68651.0,0.15968353]
[1771180725745,0.00043008,68667.0,68660.0,0.15968353]
[1771180725942,0.00043008,68667.0,68662.0,0.15968353]
[1771180726153,0.00043008,68667.0,68664.0,0.18572459]
[1771180726363,0.09336,68677.0,68664.0,0.15968353]
[1771180726573,0.09336,68677.0,68664.0,0.18572459]
[1771180726735,0.03925161,68676.0,68664.0,0.15968353]
[1771180727263,0.09336,68677.0,68653.0,0.15968353]
[1771180727264,0.14873158,68675.0,68653.0,0.15968353]
[1771180727472,0.03925161,68674.0,68655.0,0.28224]
[1771180727666,0.03925161,68674.0,68655.0,0.44192353]
[1771180727902,0.03925161,68672.0,68654.0,0.00043008]
[1771180728125,0.03925161,68671.0,68654.0,0.00043008]
[1771180728333,0.03925161,68671.0,68661.0,0.15968353]
[1771180728737,0.26564,68680.0,68661.0,0.15968353]
[1771180728946,0.26564,68680.0,68662.0,0.02604106]
[1771180729329,0.26564,68680.0,68662.0,0.18572459]
[1771180729767,0.14873158,68683.0,68664.0,0.15968353]
[1771180730051,0.41433158,68684.0,68666.0,0.18572459]
[1771180730482,0.09332,68686.0,68659.0,0.35514187]
[1771180730483,0.09332,68686.0,68672.0,0.02604106]
[1771180730632,0.09332,68686.0,68673.0,0.15968353]
[1771180730838,0.0004,68677.0,68673.0,0.15968353]
[1771180731035,0.0004,68684.0,68672.0,0.15968353]
[1771180731930,0.0004,68691.0,68671.0,0.07281066]
[1771180731931,0.0004,68691.0,68671.0,0.15968353]
[1771180732138,0.03925161,68702.0,68681.0,0.57455262]
[1771180732348,0.57455262,68720.0,68681.0,0.57455262]
[1771180732349,0.06984,68709.0,68681.0,0.57455262]
[1771180732567,0.03925161,68710.0,68691.0,0.15968353]
[1771180732780,0.24317158,68717.0,68700.0,0.57455262]
[1771180732781,0.09444,68717.0,68700.0,0.57455262]
[1771180732973,0.09444,68717.0,68697.0,0.15968353]
[1771180733181,0.09444,68717.0,68700.0,0.02604106]
[1771180733386,0.09444,68717.0,68682.0,0.2911969]
[1771180733387,0.14873158,68716.0,68681.0,0.15968353]
[1771180733647,0.14873158,68709.0,68673.0,0.15968353]
[1771180733868,0.14873158,68709.0,68677.0,0.15968353]
[1771180734062,0.09456904,68717.0,68683.0,0.02604106]
[1771180734270,0.14873158,68706.0,68684.0,0.18572459]
[1771180734435,0.07278013,68701.0,68679.0,0.28264]
[1771180734652,0.03925161,68699.0,68680.0,0.15968353]
[1771180734855,0.03925161,68699.0,68681.0,0.15968353]
[1771180736792,0.26524,68702.0,68682.0,0.18572459]
[1771180737790,0.26524,68702.0,68677.0,0.07280453]
[1771180737791,0.14873158,68697.0,68677.0,0.283]
[1771180738000,0.07278383,68697.0,68677.0,0.283]
[1771180738200,0.14873158,68695.0,68677.0,0.283]
[1771180738337,0.14873158,68700.0,68678.0,0.15968353]
[1771180738543,0.14873158,68700.0,68677.0,0.283]
[1771180738544,0.14873158,68697.0,68677.0,0.283]
[1771180738740,0.03925161,68696.0,68677.0,0.283]
[1771180739060,0.03925161,68696.0,68667.0,0.07281479]
[1771180739061,0.03925161,68693.0,68660.0,0.57455262]
[1771180739233,0.03925161,68693.0,68647.0,0.07208522]
[1771180739234,0.03925161,68692.0,68671.0,0.23249426]
[1771180739437,0.03925161,68692.0,68672.0,0.15968353]
[1771180740198,0.03925161,68692.0,68671.0,0.283]
[1771180740575,0.03925161,68692.0,68672.0,0.15968353]
[1771180740793,0.03925161,68692.0,68673.0,0.02604106]
[1771180740996,0.11204077,68692.0,68673.0,0.02604106]
[1771180741202,0.14873158,68691.0,68673.0,0.02604106]
[1771180741653,0.00012897,68693.0,68671.0,0.15968353]
[1771180741857,0.14873158,68688.0,68666.0,0.46896459]
[1771180742286,0.14873158,68688.0,68666.0,0.30928106]
[1771180742434,0.14873158,68688.0,68667.0,0.15968353]
[1771180742867,0.14873158,68686.0,68667.0,0.15968353]
[1771180743072,0.03925161,68685.0,68667.0,0.15968353]
[1771180744803,0.07279195,68689.0,68669.0,0.15968353]
[1771180745096,0.07279195,68689.0,68670.0,0.15968353]
[1771180745298,0.00012897,68693.0,68666.0,0.28324]
[1771180745299,0.07279456,68687.0,68666.0,0.28344]
[1771180745483,0.2644,68688.0,68667.0,0.15968353]
[1771180745688,0.2644,68688.0,68670.0,0.02612156]
[1771180746001,0.2644,68688.0,68671.0,0.15968353]
[1771180746206,0.2644,68688.0,68672.0,0.02612156]
[1771180746601,0.2644,68688.0,68673.0,0.15968353]
[1771180746806,0.03925161,68687.0,68673.0,0.15968353]
[1771180747008,0.03925161,68687.0,68666.0,0.28344]
[1771180747009,0.2644,68688.0,68666.0,0.0002]
[1771180747411,0.03925161,68681.0,68666.0,0.0002]
[1771180747850,0.03925161,68681.0,68666.0,0.15988353]
[1771180748867,0.07279799,68684.0,68667.0,0.02612156]
[1771180749107,0.22152979,68683.0,68666.0,0.0002]
[1771180749315,0.14873158,68679.0,68666.0,0.0002]
[1771180749793,0.14873158,68679.0,68659.0,0.0002]
[1771180749991,0.0728113,68671.0,68659.0,0.0002]
[1771180750310,0.14873158,68672.0,68659.0,0.0002]
[1771180750311,0.26428,68672.0,68659.0,0.0002]
[1771180751148,0.26428,68672.0,68659.0,0.00063008]
[1771180752389,0.28858516,68672.0,68659.0,0.00063008]
[1771180753774,0.26428,68672.0,68659.0,0.15062403]
[1771180754406,0.28850394,68672.0,68659.0,0.15062403]
[1771180757016,0.02422394,68683.0,68664.0,0.07281766]
[1771180757222,0.02422394,68682.0,68667.0,0.02350586]
[1771180757408,0.14921374,68686.0,68667.0,0.02350586]
[1771180757409,0.26436,68681.0,68667.0,0.02350586]
[1771180757609,0.02422394,68680.0,68664.0,0.14999395]
[1771180757820,0.26436,68681.0,68665.0,0.02350586]
[1771180758026,0.26436,68681.0,68668.0,0.14999395]
[1771180758280,0.26436,68681.0,68668.0,0.17349981]
[1771180760294,0.26436,68681.0,68660.0,0.57455262]
[1771180760295,0.26436,68681.0,68661.0,0.14999395]
[1771180760499,0.02422394,68680.0,68661.0,0.17349981]
[1771180760703,0.02422394,68680.0,68662.0,0.14999395]
[1771180760937,0.02422394,68680.0,68664.0,0.14999395]
[1771180762376,0.02422394,68680.0,68664.0,0.17349981]
[1771180764439,0.02422394,68679.0,68661.0,0.0002]
[1771180765429,0.02422394,68679.0,68662.0,0.14999395]
[1771180765630,0.02422394,68679.0,68663.0,0.17349981]
[1771180765851,0.02422394,68679.0,68661.0,0.0002]
[1771180765852,0.26436,68679.0,68666.0,0.14999395]
[1771180766054,0.26436,68679.0,68669.0,0.02350586]
[1771180766378,0.26436,68679.0,68670.0,0.14999395]
[1771180767178,0.14921374,68692.0,68670.0,0.17349981]
[1771180767336,0.26436,68682.0,68670.0,0.17349981]
[1771180767535,0.26436,68683.0,68670.0,0.17349981]
[1771180767994,0.26436,68683.0,68670.0,0.57325876]
[1771180768181,0.26436,68683.0,68673.0,0.17349981]
[1771180768594,0.26436,68683.0,68673.0,0.14999395]
[1771180768793,0.26436,68683.0,68669.0,0.14999395]
[1771180768967,0.26436,68683.0,68669.0,0.17349981]
[1771180770950,0.02422394,68681.0,68661.0,0.17369981]
[1771180771153,0.02422394,68681.0,68662.0,0.02350586]
[1771180771363,0.02422394,68681.0,68663.0,0.17349981]
[1771180771528,0.02422394,68681.0,68664.0,0.02350586]
[1771180771738,0.02422394,68681.0,68664.0,0.17349981]
[1771180773115,0.02462394,68681.0,68664.0,0.17349981]
[1771180774210,0.02462394,68681.0,68661.0,0.0002]
[1771180774211,0.02422394,68675.0,68661.0,0.0002]
[1771180774403,0.02422394,68674.0,68661.0,0.0002]
[1771180775981,0.14921374,68674.0,68661.0,0.0002]
[1771180776179,0.02422394,68673.0,68661.0,0.0002]
[1771180776401,0.02422394,68671.0,68661.0,0.0002]
[1771180777452,0.26436,68672.0,68661.0,0.0002]
[1771180778455,0.02422394,68673.0,68661.0,0.0002]
[1771180778652,0.55910127,68697.0,68661.0,0.0002]
[1771180778653,0.02422394,68703.0,68665.0,2.485888]
[1771180778995,0.02422394,68700.0,68678.0,0.17349981]
[1771180779347,0.02422394,68699.0,68678.0,0.17349981]
[1771180779588,0.02422394,68698.0,68678.0,0.17349981]
[1771180779761,0.17343768,68698.0,68678.0,0.17349981]
[1771180779947,0.02422394,68697.0,68678.0,0.17349981]
[1771180780144,0.14921374,68697.0,68678.0,0.17349981]
[1771180780345,0.57325876,68700.0,68668.0,0.17349981]
[1771180780546,0.57325876,68700.0,68670.0,0.14999395]
[1771180780547,0.02422394,68689.0,68670.0,0.14999395]
[1771180780754,0.26448,68688.0,68673.0,0.02350586]
[1771180780947,0.02422394,68687.0,68673.0,0.02350586]
[1771180781154,0.26444,68686.0,68673.0,0.17349981]
[1771180781360,0.26444,68686.0,68675.0,0.14999395]
[1771180782534,0.28866394,68686.0,68674.0,0.02350586]
[1771180782672,0.28866394,68686.0,68671.0,0.14999395]
[1771180783287,0.28866394,68686.0,68670.0,0.02350586]
[1771180783288,0.26444,68686.0,68670.0,0.02350586]
[1771180783492,0.02378203,68680.0,68662.0,0.14189426]
[1771180784193,0.02440164,68680.0,68662.0,0.14189426]
[1771180784710,0.02440164,68680.0,68666.0,0.14431572]
[1771180784927,0.02440164,68680.0,68668.0,0.14431572]
[1771180786007,0.28860164,68680.0,68668.0,0.14431572]
[1771180788034,0.2642,68680.0,68661.0,0.0002]
[1771180788237,0.02440164,68677.0,68661.0,0.0002]
[1771180789574,0.02440164,68675.0,68661.0,0.0002]
[1771180789947,0.16300369,68675.0,68661.0,0.0002]
[1771180790144,0.02440164,68671.0,68661.0,0.0002]
[1771180791713,0.26428,68675.0,68664.0,0.14431572]
[1771180791914,0.26428,68675.0,68666.0,0.14431572]
[1771180793322,0.26428,68678.0,68666.0,0.14431572]
[1771180793525,0.0004,68680.0,68661.0,0.0002]
[1771180793725,0.13860205,68679.0,68662.0,0.11181539]
[1771180795681,0.13860205,68678.0,68662.0,0.11181539]
[1771180796006,0.26416,68677.0,68662.0,0.11181539]
[1771180798497,0.26416,68677.0,68663.0,0.11181539]
[1771180798703,0.26416,68677.0,68664.0,0.07281827]
[1771180798904,0.0004,68680.0,68663.0,0.14431572]
[1771180799160,0.0004,68680.0,68661.0,0.0002]
[1771180799161,0.0004,68680.0,68664.0,0.14431572]
[1771180799380,0.0004,68680.0,68665.0,0.11181539]
[1771180800691,0.0004,68680.0,68666.0,0.07281581]
[1771180801037,0.0004,68680.0,68667.0,0.11181539]
[1771180801170,0.0004,68680.0,68672.0,0.11181539]
[1771180801374,0.0004,68681.0,68674.0,0.11181539]
[1771180801571,0.0004,68681.0,68662.0,0.29128085]
[1771180801572,0.20612,68680.0,68662.0,0.11181539]
[1771180801771,0.20612,68680.0,68661.0,0.0002]
[1771180801772,0.13860205,68675.0,68661.0,0.0002]
[1771180802031,0.20612,68680.0,68654.0,0.23779572]
[1771180802032,0.57325876,68671.0,68654.0,0.0002]
[1771180802220,0.57325876,68671.0,68645.0,0.14451572]
[1771180802221,0.13860205,68664.0,68645.0,0.11201539]
[1771180802424,0.26362,68663.0,68645.0,0.11201539]
[1771180802974,0.00043008,68671.0,68652.0,0.11201539]
[1771180803178,0.00043008,68671.0,68656.0,0.11181539]
[1771180803390,0.00043008,68671.0,68652.0,0.0002]
[1771180803391,0.13860205,68670.0,68652.0,0.0002]
[1771180803847,0.13860205,68670.0,68652.0,0.11201539]
[1771180804308,0.13860205,68670.0,68652.0,0.11151539]
[1771180804880,0.00043008,68671.0,68652.0,0.14431572]
[1771180805030,0.00043008,68671.0,68655.0,0.11166539]
[1771180805227,0.00026893,68671.0,68657.0,0.11166539]
[1771180805433,0.00026893,68671.0,68657.0,0.25598111]
[1771180805710,0.00026893,68671.0,68652.0,0.072831]
[1771180805909,0.00026893,68671.0,68654.0,0.11166539]
[1771180806113,0.21141651,68668.0,68654.0,0.11166539]
[1771180806472,0.13860205,68669.0,68646.0,0.11166539]
[1771180806675,0.13860205,68667.0,68646.0,0.11166539]
[1771180807080,0.13860205,68667.0,68645.0,0.0002]
[1771180807327,0.13860205,68667.0,68647.0,0.11186539]
[1771180808360,0.00026893,68671.0,68653.0,0.14431572]
[1771180808564,0.00026893,68671.0,68647.0,0.0002]
[1771180808565,0.00026893,68671.0,68660.0,0.57325876]
[1771180808946,0.00026893,68671.0,68661.0,0.11166539]
[1771180809749,0.00026893,68671.0,68651.0,0.28188]
[1771180809936,0.00026893,68671.0,68652.0,0.11166539]
[1771180810286,0.13641804,68670.0,68652.0,0.11166539]
[1771180810905,0.13860205,68669.0,68647.0,0.11186539]
[1771180811106,0.13860205,68666.0,68647.0,0.11186539]
[1771180811722,0.13860205,68666.0,68648.0,0.11166539]
[1771180812145,0.07281384,68669.0,68649.0,0.14431572]
[1771180812427,0.07281384,68669.0,68650.0,0.11166539]
[1771180812621,0.21141589,68669.0,68650.0,0.11166539]
[1771180812828,0.13860205,68669.0,68650.0,0.11166539]
[1771180813063,0.13860205,68669.0,68650.0,0.14431572]
[1771180813294,0.13860205,68669.0,68661.0,0.0002]
[1771180813468,0.21141588,68669.0,68661.0,0.0002]
[1771180813684,0.14136329,68668.0,68661.0,0.0002]
[1771180813922,0.14136329,68668.0,68647.0,0.0002]
[1771180813923,0.57293648,68651.0,68631.0,0.0558327]
[1771180814073,0.07284094,68643.0,68631.0,0.0558327]
[1771180814270,0.0728428,68641.0,68631.0,0.0558327]
[1771180814472,0.14136329,68645.0,68623.0,0.0558327]
[1771180814666,0.07284319,68641.0,68624.0,0.0558327]
[1771180814909,0.14136329,68644.0,68624.0,0.0558327]
[1771180815123,0.14136329,68644.0,68625.0,0.0558327]
[1771180815323,0.35712,68650.0,68625.0,0.0558327]
[1771180815324,0.07283777,68646.0,68625.0,0.0558327]
[1771180815482,0.14136329,68645.0,68625.0,0.0558327]
[1771180815685,0.14136329,68649.0,68625.0,0.0558327]
[1771180815894,0.07284074,68643.0,68625.0,0.0558327]
[1771180816101,0.14136329,68642.0,68625.0,0.0558327]
[1771180816715,0.21420508,68642.0,68625.0,0.0558327]
[1771180817323,0.29132044,68653.0,68625.0,0.0558327]
[1771180817324,0.11617935,68679.0,68634.0,0.0558327]
[1771180817695,0.11617935,68679.0,68625.0,0.13870603]
[1771180817696,0.0005,68650.0,68635.0,0.28164]
[1771180817863,0.0005,68650.0,68636.0,0.0558327]
[1771180818516,0.0005,68650.0,68637.0,0.0558327]
[1771180818739,0.0005,68650.0,68641.0,0.0558327]
[1771180818987,0.0005,68650.0,68641.0,0.12867522]
[1771180819191,0.2636,68668.0,68644.0,0.07283864]
[1771180819398,0.2636,68668.0,68645.0,0.0558327]
[1771180819711,0.2636,68668.0,68646.0,0.13870603]
[1771180819913,0.2636,68668.0,68648.0,0.13870603]
[1771180820118,0.2636,68668.0,68649.0,0.0558327]
[1771180820317,0.2636,68668.0,68641.0,0.0728423]
[1771180820318,0.14136329,68666.0,68641.0,0.0558327]
[1771180820703,0.14136329,68659.0,68641.0,0.0558327]
[1771180820863,0.00042998,68666.0,68641.0,0.0558327]
[1771180821054,0.07282256,68661.0,68641.0,0.0558327]
[1771180821572,0.07282277,68660.0,68641.0,0.0558327]
[1771180821777,0.14136329,68659.0,68641.0,0.0558327]
[1771180822133,0.00042998,68666.0,68637.0,0.28168]
[1771180822134,0.07324634,68666.0,68642.0,0.13870603]
[1771180822350,0.00042998,68666.0,68645.0,0.0558327]
[1771180822550,0.26336,68665.0,68645.0,0.0558327]
[1771180822751,0.14136329,68664.0,68645.0,0.0558327]
[1771180823832,0.21418272,68663.0,68645.0,0.0558327]
[1771180824405,0.07282074,68662.0,68645.0,0.0558327]
[1771180824605,0.07282259,68661.0,68645.0,0.0558327]
[1771180824826,0.14136329,68663.0,68645.0,0.0558327]
[1771180825190,0.14136329,68663.0,68613.0,0.2814]
[1771180825191,0.58255549,68663.0,68613.0,0.2814]
[1771180825389,0.26336,68665.0,68616.0,0.02791635]
[1771180825390,0.07285443,68631.0,68616.0,0.02791635]
[1771180825619,0.43697381,68656.0,68616.0,0.02791635]
[1771180825620,0.57363338,68635.0,68616.0,0.02791635]
[1771180825986,0.26352,68639.0,68616.0,0.02791635]
[1771180825987,0.14136329,68638.0,68616.0,0.02791635]
[1771180826369,0.14136329,68636.0,68616.0,0.02791635]
[1771180826571,0.14136329,68633.0,68616.0,0.02791635]
[1771180826750,0.21421484,68633.0,68616.0,0.02791635]
[1771180827255,0.07285748,68628.0,68616.0,0.02791635]
[1771180827509,0.07285875,68626.0,68616.0,0.02791635]
[1771180827752,0.11617935,68662.0,68622.0,0.17216841]
[1771180827949,0.0004302,68662.0,68641.0,0.02791635]
[1771180828128,0.0004302,68662.0,68643.0,0.02791635]
[1771180828278,0.14179349,68662.0,68643.0,0.02791635]
[1771180828511,0.14179349,68662.0,68638.0,0.28104]
[1771180828512,0.14179349,68662.0,68644.0,0.16662238]
[1771180829331,0.07282453,68659.0,68644.0,0.02791635]
[1771180829552,0.21418782,68659.0,68644.0,0.02791635]
[1771180829906,0.07282453,68659.0,68644.0,0.02791635]
[1771180830105,0.21418782,68659.0,68644.0,0.02791635]
[1771180830319,0.07282501,68658.0,68644.0,0.02791635]
[1771180830488,0.21418782,68659.0,68644.0,0.02791635]
[1771180830686,0.21418703,68659.0,68644.0,0.02791635]
[1771180830899,0.0004302,68662.0,68641.0,0.0002]
[1771180830900,0.83715338,68660.0,68641.0,0.0002]
[1771180831186,0.21419028,68656.0,68641.0,0.0002]
[1771180831345,0.21419418,68653.0,68641.0,0.0002]
[1771180831752,0.07282855,68655.0,68641.0,0.0002]
[1771180831753,0.07282805,68655.0,68641.0,0.0002]
[1771180832613,0.07282697,68656.0,68641.0,0.0002]
[1771180832818,0.26352,68660.0,68643.0,0.13870603]
[1771180832986,0.26352,68660.0,68646.0,0.02784312]
[1771180833203,0.26352,68660.0,68646.0,0.02769669]
[1771180833927,0.07282665,68657.0,68641.0,0.0002]
[1771180835607,0.07282665,68657.0,68641.0,0.02796991]
[1771180836033,0.07282732,68656.0,68641.0,0.02796991]
[1771180836220,0.07282602,68657.0,68642.0,0.02776991]
[1771180837521,0.14136329,68658.0,68634.0,0.0002]
[1771180837522,0.07283321,68650.0,68634.0,0.0002]
[1771180837729,0.0728371,68647.0,68634.0,0.0002]
[1771180838350,0.07283571,68648.0,68641.0,0.0002]
[1771180838612,0.26408,68650.0,68641.0,0.0002]
[1771180839667,0.29127816,68663.0,68641.0,0.0002]
[1771180839668,0.0004,68672.0,68662.0,0.13870603]
[1771180839895,0.0004,68679.0,68665.0,0.02461942]
[1771180840127,0.0004,68679.0,68669.0,0.02461942]
[1771180840397,0.0004,68679.0,68671.0,0.16332545]
[1771180842097,0.0004,68679.0,68663.0,0.27988]
[1771180842098,0.0004,68679.0,68653.0,0.02461942]
[1771180842307,0.07280774,68675.0,68654.0,0.13870603]
[1771180842518,0.07280675,68675.0,68654.0,0.13870603]
[1771180842728,0.14136329,68676.0,68654.0,0.16332545]
[1771180843141,0.14136329,68676.0,68655.0,0.16332545]
[1771180843353,0.02263008,68679.0,68657.0,0.14942492]
[1771180843354,0.09543282,68679.0,68657.0,0.14942492]
[1771180843561,0.07320274,68679.0,68659.0,0.14942492]
[1771180843740,0.0004,68679.0,68659.0,0.17329943]
[1771180843986,0.14686641,68679.0,68659.0,0.17329943]
[1771180844219,0.0004,68679.0,68659.0,0.02387451]
[1771180844442,0.0728058,68676.0,68659.0,0.02387451]
[1771180846403,0.29122255,68676.0,68659.0,0.02387451]
[1771180846578,0.07281097,68671.0,68653.0,0.30398471]
[1771180846785,0.07281007,68672.0,68653.0,0.44905001]
[1771180847189,0.0003563,68677.0,68656.0,0.02387451]
[1771180847403,0.0003563,68677.0,68658.0,0.02387451]
[1771180847636,0.0003563,68677.0,68659.0,0.02387451]
[1771180847823,0.07316108,68677.0,68659.0,0.02387451]
[1771180848227,0.0003563,68677.0,68660.0,0.16893981]
[1771180848439,0.0003563,68677.0,68660.0,0.1450653]